bitfinex/quotes_ETHUSD_20251006
["timestamp","ask_amount","ask_price","bid_price","bid_amount"]
[1759709556091,1e-08,4511.9,4511.8,31.5946354]
[1759709556393,1e-08,4511.9,4511.8,35.0310463]
[1759709557092,0.4621,4513.1,4512.4,5.24971559]
[1759709557249,0.4621,4513.1,4512.4,33.20960359]
[1759709557453,0.4621,4513.1,4512.4,31.83441559]
[1759709557654,0.4621,4513.3,4512.4,30.78936359]
[1759709557866,0.4621,4513.3,4512.4,29.05235259]
[1759709558457,0.4621,4513.3,4512.4,31.51768859]
[1759709558785,0.4621,4513.1,4512.4,20.71463759]
[1759709558985,0.4621,4513.1,4512.4,23.10415359]
[1759709559186,0.4621,4513.1,4512.4,21.71963759]
[1759709559359,0.4621,4513.1,4512.4,21.68665359]
[1759709559554,0.4621,4513.1,4512.4,21.81330333]
[1759709559758,0.4621,4513.1,4512.4,21.85730333]
[1759709560088,0.4621,4513.1,4512.4,21.82931933]
[1759709560259,0.4621,4513.1,4512.4,26.62320133]
[1759709560595,0.4721,4512.9,4512.4,18.00224233]
[1759709560755,0.4721,4512.9,4512.4,17.41641233]
[1759709560959,0.4721,4512.9,4512.4,20.80410333]
[1759709561155,0.4721,4512.9,4512.4,18.81610333]
[1759709561356,0.4721,4512.9,4512.4,18.84341533]
[1759709561589,0.4721,4512.9,4512.4,16.70620233]
[1759709561792,0.4721,4512.9,4512.4,18.70043833]
[1759709561973,0.4721,4512.9,4512.4,19.84842333]
[1759709562285,0.4721,4512.9,4512.4,19.81543833]
[1759709562795,0.01,4512.9,4512.4,19.81543833]
[1759709562967,1e-08,4512.9,4512.8,2.84951916]
[1759709563286,1e-08,4512.9,4512.8,18.03437816]
[1759709563502,0.46210001,4512.9,4512.8,5.24951916]
[1759709563708,0.46210001,4512.9,4512.8,9.92279416]
[1759709563903,0.46210001,4512.9,4512.8,7.75751916]
[1759709564106,0.46210001,4512.9,4512.8,10.44516216]
[1759709564610,0.46210001,4512.9,4512.8,7.75751916]
[1759709565189,0.46210001,4512.9,4512.8,10.36979416]
[1759709565406,0.46210001,4512.9,4512.8,7.75751916]
[1759709565980,0.46210001,4512.9,4512.8,8.20828968]
[1759709566180,0.46210001,4512.9,4512.8,5.70028968]
[1759709566377,0.46210001,4512.9,4512.8,3.48437052]
[1759709566724,0.46210001,4512.9,4512.8,7.57468968]
[1759709567008,1e-08,4512.9,4512.8,8.20828968]
[1759709567210,1e-08,4512.9,4512.8,23.59146468]
[1759709567374,1e-08,4512.9,4512.8,25.59763068]
[1759709567575,1e-08,4512.9,4512.8,19.97746568]
[1759709567807,0.46210001,4512.9,4512.8,17.15483768]
[1759709568873,0.46210001,4512.9,4512.8,8.20828968]
[1759709569080,1e-08,4512.9,4512.8,8.20828968]
[1759709569320,1e-08,4512.9,4512.8,21.69446268]
[1759709569615,1e-08,4513.5,4513.4,5.24922458]
[1759709569776,1e-08,4513.5,4513.4,16.94937458]
[1759709569977,1e-08,4513.5,4513.4,18.27004958]
[1759709570178,1e-08,4513.5,4513.4,10.52888358]
[1759709570706,1e-08,4513.5,4513.4,10.46187958]
[1759709570930,1e-08,4513.5,4513.4,9.99977958]
[1759709571132,1e-08,4513.5,4513.4,10.08842567]
[1759709573437,1e-08,4513.5,4513.4,11.17392167]
[1759709574119,1e-08,4513.5,4513.4,12.94149416]
[1759709575200,1e-08,4513.5,4513.4,11.17392167]
[1759709579149,1e-08,4513.5,4513.4,11.39812167]
[1759709579336,1e-08,4513.5,4513.4,11.17392167]
[1759709579534,0.46210001,4513.5,4513.4,11.17392167]
[1759709579794,1e-08,4513.5,4513.4,22.52212767]
[1759709580085,1e-08,4513.5,4513.4,22.84248367]
[1759709581366,1e-08,4513.5,4513.4,24.60633421]
[1759709583541,0.012,4513.9,4513.4,24.60633421]
[1759709583542,1e-08,4513.9,4513.8,2.84902824]
[1759709583742,1e-08,4513.9,4513.8,37.88958252]
[1759709583936,1e-08,4513.9,4513.8,37.86742824]
[1759709584142,1e-08,4513.9,4513.8,11.91139924]
[1759709584372,1e-08,4513.9,4513.8,11.70885924]
[1759709584574,1e-08,4513.9,4513.8,13.87390724]
[1759709586401,1e-08,4513.9,4513.8,11.36590724]
[1759709586597,1e-08,4513.9,4513.8,13.87390724]
[1759709586895,1e-08,4513.9,4513.8,14.09810724]
[1759709587060,0.01,4514.9,4514.8,0.6336]
[1759709587267,0.01,4514.9,4514.8,7.75653753]
[1759709587594,0.4638,4514.9,4514.8,7.86693753]
[1759709587795,1e-08,4514.9,4514.8,8.4292348]
[1759709588565,1e-08,4514.9,4514.8,22.1886628]
[1759709588761,1e-08,4514.9,4514.8,24.0225878]
[1759709588967,1e-08,4514.9,4514.8,8.3188348]
[1759709589213,0.4538,4515.6,4515.5,5.24819417]
[1759709589386,0.4538,4515.6,4515.5,7.75619417]
[1759709589597,1.6938,4515.9,4515.8,5.24804705]
[1759709589822,1.24,4515.9,4515.8,8.20558811]
[1759709590037,1.24,4515.9,4515.8,8.87012015]
[1759709590419,1.6938,4515.9,4515.8,8.87012015]
[1759709590808,2.9238,4515.9,4515.8,8.87012015]
[1759709591833,2.9238,4515.9,4515.8,6.36212015]
[1759709592138,2.9238,4515.9,4515.8,8.87012015]
[1759709592336,4.1538,4515.9,4515.8,8.87012015]
[1759709592625,4.1538,4515.9,4515.8,6.6556731]
[1759709592826,4.1538,4515.9,4515.8,8.87012015]
[1759709593530,0.01,4517.9,4516.0,2.21434898]
[1759709593716,0.01,4517.9,4515.9,3.0336]
[1759709593717,0.20638584,4517.8,4516.1,31.72673675]
[1759709593897,0.48550336,4519.9,4516.2,33.22156015]
[1759709594098,0.48550336,4519.9,4517.5,2.4]
[1759709594099,0.01,4519.9,4517.5,2.4]
[1759709594307,0.01,4519.9,4517.7,3.0336]
[1759709594509,0.01,4519.9,4518.5,0.6336]
[1759709594704,3.8569301,4519.5,4518.6,0.20559096]
[1759709594934,0.38669301,4519.8,4517.8,0.66415689]
[1759709594935,2.4,4519.4,4517.8,0.66415689]
[1759709595131,2.4,4519.4,4516.5,1.275]
[1759709595132,9.41148959,4519.0,4516.5,1.275]
[1759709595432,9.41148959,4519.0,4517.1,0.6644658]
[1759709595726,3.90194896,4518.9,4517.1,0.6644658]
[1759709595928,0.4538,4518.8,4517.1,0.6644658]
[1759709596113,0.4538,4518.7,4517.1,0.6644658]
[1759709596313,0.4538,4518.6,4517.1,0.6744658]
[1759709596525,0.4538,4518.5,4517.1,0.6744658]
[1759709596694,2.507,4518.9,4517.1,0.6744658]
[1759709596898,0.4538,4518.4,4517.1,0.6744658]
[1759709597231,0.4538,4518.3,4517.1,0.6744658]
[1759709597554,2.9598,4518.2,4517.1,0.6744658]
[1759709597854,0.4538,4518.1,4517.1,1.11661677]
[1759709598156,0.74978,4518.0,4517.1,1.11661677]
[1759709598453,0.4538,4517.9,4517.1,1.11661677]
[1759709598851,0.1104,4517.3,4517.1,0.6744658]
[1759709599259,0.4538,4517.2,4517.1,0.6744658]
[1759709599458,0.4538,4517.2,4517.1,0.01]
[1759709599632,0.63322,4517.2,4517.1,0.01]
[1759709599955,5.53922,4517.2,4517.1,0.01]
[1759709600979,6.76922,4517.2,4517.1,0.01]
[1759709602120,3.09322,4517.2,4517.1,0.01]
[1759709602530,2.46,4517.2,4517.1,0.01]
[1759709603755,3.69,4517.2,4517.1,0.01]
[1759709603926,4.1438,4517.2,4517.1,0.01]
[1759709605265,5.3738,4517.2,4517.1,0.01]
[1759709605431,1.23,4517.3,4517.2,17.62086973]
[1759709605629,1.23,4517.3,4517.2,14.05933873]
[1759709605864,1.23,4518.4,4517.4,0.6336]
[1759709606045,1.23,4518.4,4518.3,2.21322178]
[1759709606441,1.23,4518.4,4518.3,2.66715399]
[1759709606655,2.46,4518.4,4518.3,3.30075399]
[1759709606858,2.46,4518.4,4518.3,3.27862178]
[1759709607885,2.46,4518.4,4518.3,5.67862178]
[1759709608093,2.46,4518.4,4518.3,6.11375062]
[1759709608094,3.69,4518.4,4518.3,6.11375062]
[1759709608479,3.69,4518.4,4518.3,22.17761162]
[1759709608754,3.69,4518.4,4518.3,9.89832562]
[1759709608958,3.69,4518.4,4518.3,12.40432562]
[1759709609166,3.69,4518.4,4518.3,16.20597862]
[1759709609465,4.92,4518.4,4518.3,6.11375062]
[1759709609653,4.92,4518.4,4518.3,3.57912884]
[1759709609969,4.92,4518.4,4518.3,5.79235062]
[1759709610145,4.92,4518.4,4518.3,6.08512884]
[1759709610345,4.92,4518.4,4518.3,6.74937102]
[1759709610947,6.15,4518.4,4518.3,6.74937102]
[1759709611373,6.15,4518.4,4518.3,8.9625928]
[1759709611864,6.15,4518.4,4518.3,6.74937102]
[1759709612255,7.38,4518.4,4518.3,6.74937102]
[1759709612464,7.38,4518.4,4518.3,8.9625928]
[1759709612657,7.38,4518.4,4518.3,6.11577102]
[1759709613044,7.38,4518.4,4518.3,8.3289928]
[1759709613666,8.61,4518.4,4518.3,8.3289928]
[1759709613967,8.61,4518.4,4518.3,8.7714928]
[1759709614572,8.61,4518.4,4518.3,9.79485295]
[1759709614759,8.61,4518.4,4518.3,9.4050928]
[1759709615077,9.84,4518.4,4518.3,31.2939308]
[1759709615249,9.84,4518.4,4518.3,29.0583178]
[1759709615454,2.22550316,4518.4,4518.3,36.3333738]
[1759709616272,0.002,4518.7,4518.4,5.2467728]
[1759709616569,0.002,4518.7,4518.6,5.24667484]
[1759709616737,0.002,4518.7,4518.6,24.46290084]
[1759709616936,0.002,4518.7,4518.6,22.98228284]
[1759709617147,0.002,4518.7,4518.6,21.48885384]
[1759709617676,1.232,4518.7,4518.6,21.48885384]
[1759709617853,1.232,4518.7,4518.6,18.93675884]
[1759709618053,1.23,4519.0,4518.9,2.84652792]
[1759709618371,1.23,4519.0,4518.9,14.68417992]
[1759709618552,1.23,4519.0,4518.9,15.30901692]
[1759709618754,1.23,4519.0,4518.9,15.97307972]
[1759709618941,1.24,4519.9,4519.6,2.84618518]
[1759709619141,1.24,4519.9,4519.6,7.75118518]
[1759709619666,1.24,4519.9,4519.6,8.41520976]
[1759709620372,1.232,4519.7,4519.6,8.41520976]
[1759709620911,1.232,4519.7,4519.6,6.20262458]
[1759709621903,2.462,4519.7,4519.6,8.41520976]
[1759709622200,2.462,4519.7,4519.6,6.20262458]
[1759709622409,2.462,4519.7,4519.6,8.41520976]
[1759709622697,2.462,4519.7,4519.6,6.20262458]
[1759709622993,2.9119,4519.7,4519.6,7.78060976]
[1759709623171,4.1419,4519.7,4519.6,7.78060976]
[1759709623567,3.692,4519.7,4519.6,7.78060976]
[1759709624565,4.922,4519.7,4519.6,7.78060976]
[1759709625201,2.46033357,4519.7,4519.6,32.22201276]
[1759709625422,2.46033357,4519.7,4519.6,11.18272076]
[1759709625706,2.46033357,4519.7,4519.6,8.34662076]
[1759709625915,2.46033357,4519.7,4519.6,7.78160976]
[1759709625916,3.69033357,4519.7,4519.6,7.78160976]
[1759709626065,3.69033357,4519.7,4519.6,8.41520976]
[1759709626262,3.69233357,4519.7,4519.6,8.41520976]
[1759709626571,3.69233357,4519.7,4519.6,8.85770976]
[1759709627505,4.92233357,4519.7,4519.6,8.85770976]
[1759709628601,4.92233357,4519.7,4519.6,20.28958791]
[1759709628802,6.15233357,4519.7,4519.6,20.08552976]
[1759709629003,6.15233357,4519.7,4519.6,13.50815076]
[1759709629365,6.15233357,4519.7,4519.6,13.50715076]
[1759709630203,7.38233357,4519.7,4519.6,5.91020976]
[1759709630396,7.38233357,4519.7,4519.6,12.32036976]
[1759709630569,7.38233357,4519.7,4519.6,12.76286976]
[1759709631484,8.61233357,4519.7,4519.6,12.76286976]
[1759709633021,1e-08,4519.9,4519.8,0.6336]
[1759709633173,1e-08,4519.9,4519.8,7.74908727]
[1759709633374,1e-08,4519.9,4519.8,8.19158727]
[1759709634198,1.23000001,4519.9,4519.8,8.85550311]
[1759709635420,1.23000001,4519.9,4519.8,8.41300311]
[1759709635616,0.002,4520.2,4520.0,0.6336]
[1759709635916,0.002,4520.2,4520.1,35.91207143]
[1759709636117,0.002,4520.2,4520.1,15.82010743]
[1759709636285,0.002,4520.2,4520.1,16.26090537]
[1759709636484,0.002,4520.2,4520.1,12.46447537]
[1759709636690,0.002,4520.2,4520.1,11.15626337]
[1759709636890,0.002,4520.2,4520.1,13.65926337]
[1759709637205,0.002,4520.2,4520.1,12.08777237]
[1759709637206,1.232,4520.2,4520.1,12.08777237]
[1759709637409,1.232,4520.2,4520.1,11.64527237]
[1759709637591,112.93983343,4520.4,4520.3,5.24584255]
[1759709637796,112.93983343,4520.4,4520.3,18.41304955]
[1759709638194,112.93983343,4520.4,4520.3,16.47644055]
[1759709638524,114.16983343,4520.4,4520.3,16.47644055]
[1759709638690,105.76774613,4520.4,4520.3,8.19134255]
[1759709638889,105.76774613,4520.4,4520.3,30.40322855]
[1759709639521,105.76774613,4520.4,4520.3,23.49733052]
[1759709639690,106.99774613,4520.4,4520.3,21.39241952]
[1759709639892,106.99774613,4520.4,4520.3,22.80735352]
[1759709640292,100.17490388,4520.4,4520.3,22.14356255]
[1759709640594,100.17490388,4520.4,4520.3,21.56548255]
[1759709640795,100.17490388,4520.4,4520.3,21.73549855]
[1759709641414,101.40490388,4520.4,4520.3,21.43695555]
[1759709641615,101.40490388,4520.4,4520.3,16.58753555]
[1759709641839,101.40490388,4520.4,4520.3,17.02193955]
[1759709642344,101.40490388,4520.4,4520.3,17.46443955]
[1759709642904,102.63490388,4520.4,4520.3,22.76913455]
[1759709643244,69.91513315,4520.4,4520.3,22.76913455]
[1759709643795,69.91513315,4520.4,4520.3,38.31584931]
[1759709643995,69.91513315,4520.4,4520.3,35.09834931]
[1759709644330,71.14513315,4520.4,4520.3,32.78479131]
[1759709644499,71.14513315,4520.4,4520.3,30.30085031]
[1759709644693,71.14513315,4520.4,4520.3,23.40637831]
[1759709644889,71.14513315,4520.4,4520.3,22.59074055]
[1759709645094,71.14513315,4520.4,4520.3,21.21529455]
[1759709645390,71.14713315,4520.4,4520.3,21.21529455]
[1759709645597,72.37713315,4520.4,4520.3,21.21529455]
[1759709645791,72.37713315,4520.4,4520.3,8.19134255]
[1759709646000,72.37713315,4520.4,4520.3,23.38785655]
[1759709646326,72.37713315,4520.4,4520.3,16.38221855]
[1759709646830,72.37713315,4520.4,4520.3,15.91401855]
[1759709647027,73.60713315,4520.4,4520.3,18.29651255]
[1759709647196,73.60713315,4520.4,4520.3,18.76471255]
[1759709647528,73.60713315,4520.4,4520.3,18.87511255]
[1759709647916,73.60713315,4520.4,4520.3,26.45982031]
[1759709648317,74.83713315,4520.4,4520.3,26.45982031]
[1759709648633,74.83713315,4520.4,4520.3,21.75570331]
[1759709648933,74.83713315,4520.4,4520.3,27.40894731]
[1759709649095,74.83713315,4520.4,4520.3,19.25976231]
[1759709649807,76.06713315,4520.4,4520.3,18.07372055]
[1759709650015,76.06713315,4520.4,4520.3,19.00826331]
[1759709650913,76.06713315,4520.4,4520.3,9.51348431]
[1759709651115,77.29713315,4520.4,4520.3,20.64268731]
[1759709651411,77.29713315,4520.4,4520.3,20.29568731]
[1759709651625,77.29713315,4520.4,4520.3,19.82748731]
[1759709652021,77.29713315,4520.4,4520.3,20.29060631]
[1759709652541,78.52713315,4520.4,4520.3,20.29060631]
[1759709652910,78.52713315,4520.4,4520.3,9.04528431]
[1759709653104,78.52713315,4520.4,4520.3,20.17448731]
[1759709653431,78.52713315,4520.4,4520.3,18.98844555]
[1759709653816,79.75713315,4520.4,4520.3,18.98844555]
[1759709654009,79.75713315,4520.4,4520.3,19.27643255]
[1759709654498,79.75713315,4520.4,4520.3,19.74463255]
[1759709655016,79.75713315,4520.4,4520.3,22.29188455]
[1759709655213,80.98713315,4520.4,4520.3,22.29188455]
[1759709655411,80.98713315,4520.4,4520.3,12.05343155]
[1759709655611,80.98713315,4520.4,4520.3,10.70316455]
[1759709655813,81.45373315,4520.4,4520.3,10.06854255]
[1759709656018,80.98713315,4520.4,4520.3,10.65168355]
[1759709656231,81.45373315,4520.4,4520.3,9.04434099]
[1759709656436,81.45373315,4520.4,4520.3,2.5104]
[1759709656761,81.45373315,4520.4,4520.3,8.01536194]
[1759709656762,82.68373315,4520.4,4520.3,8.01536194]
[1759709657104,82.68373315,4520.4,4520.3,8.64896194]
[1759709657705,82.68373315,4520.4,4520.3,6.14796194]
[1759709657934,82.68373315,4520.4,4520.3,8.64896194]
[1759709658160,83.91373315,4520.4,4520.3,8.64896194]
[1759709659043,74.94165446,4520.4,4520.3,7.85724255]
[1759709659203,74.94165446,4520.4,4520.3,14.16816255]
[1759709659401,76.17165446,4520.4,4520.3,15.35526099]
[1759709660032,25.6585667,4520.4,4520.3,17.22055499]
[1759709660207,25.6585667,4520.4,4520.3,15.56525655]
[1759709660407,25.6585667,4520.4,4520.3,15.49080455]
[1759709660608,26.8885667,4520.4,4520.3,15.02260455]
[1759709661007,26.8885667,4520.4,4520.3,16.29529855]
[1759709661640,26.8885667,4520.4,4520.3,16.76349855]
[1759709661805,26.8885667,4520.4,4520.3,16.29529855]
[1759709662134,26.8885667,4520.4,4520.3,13.24620255]
[1759709662336,28.1185667,4520.4,4520.3,13.24620255]
[1759709662513,28.1185667,4520.4,4520.3,13.71440255]
[1759709663041,28.1185667,4520.4,4520.3,37.05761355]
[1759709663248,28.1185667,4520.4,4520.3,8.32544255]
[1759709663411,28.1185667,4520.4,4520.3,35.25761355]
[1759709663740,29.3485667,4520.4,4520.3,37.05761355]
[1759709663910,29.3485667,4520.4,4520.3,34.44642055]
[1759709664114,29.3485667,4520.4,4520.3,34.44742055]
[1759709665042,29.3485667,4520.4,4520.3,33.02992055]
[1759709665341,30.5785667,4520.4,4520.3,33.02992055]
[1759709665941,30.5785667,4520.4,4520.3,7.85824255]
[1759709666141,30.5785667,4520.4,4520.3,30.66518655]
[1759709666516,31.8085667,4520.4,4520.3,30.66518655]
[1759709666913,31.8085667,4520.4,4520.3,29.69523155]
[1759709667130,31.8085667,4520.4,4520.3,12.42840255]
[1759709667450,31.8085667,4520.4,4520.3,12.10501455]
[1759709667939,33.0385667,4520.4,4520.3,12.10501455]
[1759709668137,20.912,4520.4,4520.3,39.44374925]
[1759709668343,35.67,4520.6,4520.4,5.24579361]
[1759709668646,35.67,4520.6,4520.4,35.24579361]
[1759709669321,2.46,4520.5,4520.4,35.24579361]
[1759709669519,2.9266,4520.5,4520.4,35.24579361]
[1759709670036,2.46,4520.5,4520.4,5.24579361]
[1759709670250,2.46,4520.5,4520.4,35.24579361]
[1759709670547,2.9266,4520.5,4520.4,35.24579361]
[1759709670747,4.1566,4520.5,4520.4,35.24579361]
[1759709671160,3.69,4520.5,4520.4,35.24579361]
[1759709671519,4.1566,4520.5,4520.4,35.24579361]
[1759709672017,5.3866,4520.5,4520.4,35.24579361]
[1759709673449,6.6166,4520.5,4520.4,35.24579361]
[1759709673650,6.15,4520.5,4520.4,35.24579361]
[1759709673854,6.591,4520.5,4520.4,34.61219361]
[1759709674055,6.591,4520.5,4520.4,37.74679361]
[1759709674754,7.821,4520.5,4520.4,37.74679361]
[1759709674963,7.821,4520.5,4520.4,38.93778176]
[1759709676252,7.821,4520.5,4520.4,36.43678176]
[1759709676456,9.051,4520.5,4520.4,36.43678176]
[1759709676660,11.552,4520.5,4520.4,34.61219361]
[1759709677552,11.552,4520.5,4520.4,32.4]
[1759709677729,12.782,4520.5,4520.4,2.4]
[1759709678057,14.95049181,4520.5,4520.3,0.001]
[1759709678357,2.501,4520.4,4520.3,0.001]
[1759709678567,2.942,4520.4,4520.3,0.001]
[1759709679125,4.172,4520.4,4520.3,0.001]
[1759709679346,6.34049181,4520.4,4520.3,0.001]
[1759709680167,3.83949181,4520.4,4520.3,0.001]
[1759709680374,6.34049181,4520.4,4520.3,0.001]
[1759709680545,7.57049181,4520.4,4520.3,0.001]
[1759709681950,8.80049181,4520.4,4520.3,0.001]
[1759709682172,8.80249181,4520.4,4520.3,0.001]
[1759709682859,6.30149181,4520.4,4520.3,0.001]
[1759709683068,8.80249181,4520.4,4520.3,0.001]
[1759709683369,7.53149181,4520.4,4520.3,0.001]
[1759709683597,10.03249181,4520.4,4520.3,0.001]
[1759709684073,7.53149181,4520.4,4520.3,0.001]
[1759709684282,10.03249181,4520.4,4520.3,0.001]
[1759709684789,11.26249181,4520.4,4520.3,0.001]
[1759709685494,8.76149181,4520.4,4520.3,0.001]
[1759709686058,12.49249181,4520.4,4520.3,0.001]
[1759709686258,9.99149181,4520.4,4520.3,0.001]
[1759709686458,12.49249181,4520.4,4520.3,0.001]
[1759709687298,7.823,4520.4,4520.3,0.001]
[1759709687486,11.113,4520.4,4520.3,0.001]
[1759709687788,11.2234,4520.4,4520.3,0.001]
[1759709688288,11.6644,4520.4,4520.3,0.001]
[1759709688969,12.8944,4520.4,4520.3,0.001]
[1759709690589,14.1244,4520.4,4520.3,0.001]
[1759709691177,13.6834,4520.4,4520.3,2.21324255]
[1759709691492,11.1824,4520.4,4520.3,2.21324255]
[1759709691697,13.6834,4520.4,4520.3,2.21324255]
[1759709691897,14.9134,4520.4,4520.3,0.001]
[1759709692198,14.9134,4520.4,4520.3,2.21324255]
[1759709692381,12.8534,4520.4,4520.3,2.21324255]
[1759709692589,14.9134,4520.4,4520.3,2.21324255]
[1759709693264,12.4124,4520.4,4520.3,2.21324255]
[1759709693482,13.6424,4520.4,4520.3,2.21324255]
[1759709693791,16.1434,4520.4,4520.3,2.21324255]
[1759709694472,16.033,4520.4,4520.3,2.21324255]
[1759709694875,17.263,4520.4,4520.3,2.21324255]
[1759709695810,14.762,4520.4,4520.3,2.21324255]
[1759709696009,17.263,4520.4,4520.3,2.21324255]
[1759709696214,18.493,4520.4,4520.3,2.21324255]
[1759709696713,15.992,4520.4,4520.3,2.64724255]
[1759709696882,15.992,4520.4,4520.3,5.04724255]
[1759709697079,15.992,4520.4,4520.3,4.61324255]
[1759709697684,17.222,4520.4,4520.3,4.61324255]
[1759709698995,18.452,4520.4,4520.3,4.61324255]
[1759709699317,20.953,4520.4,4520.3,4.61324255]
[1759709699614,20.953,4520.4,4520.3,5.04724255]
[1759709700118,20.953,4520.4,4520.3,4.61324255]
[1759709700426,22.183,4520.4,4520.3,5.04724255]
[1759709700723,35.67,4520.6,4520.5,2.21214467]
[1759709700894,35.67,4520.6,4520.5,5.06826611]
[1759709701080,35.67,4520.6,4520.5,5.15654467]
[1759709701280,35.67,4520.6,4520.5,8.18074467]
[1759709701628,11.39843112,4520.6,4520.5,38.29114467]
[1759709701916,11.39843112,4520.6,4520.5,38.18074467]
[1759709702094,11.39843112,4520.6,4520.5,23.98967367]
[1759709702293,0.002,4521.4,4520.9,2.4]
[1759709702506,9.14695952,4521.9,4521.8,2.21150869]
[1759709702723,9.14695952,4521.9,4521.8,8.22772377]
[1759709702897,9.14695952,4521.9,4521.8,38.59536884]
[1759709703097,9.14695952,4521.9,4521.8,39.04683433]
[1759709703396,2.46,4524.0,4522.1,2.84496197]
[1759709703397,13.29942312,4522.2,4522.1,2.84496197]
[1759709703633,13.29942312,4522.2,4522.1,13.45722597]
[1759709703821,13.29942312,4522.2,4522.1,12.23215552]
[1759709704131,13.29942312,4522.2,4522.1,3.0336]
[1759709704296,13.29942312,4522.2,4522.1,4.925]
[1759709704831,13.29942312,4522.2,4522.1,8.030624]
[1759709705031,13.29942312,4522.2,4522.1,15.995687]
[1759709705330,13.29942312,4522.2,4522.1,12.39349797]
[1759709705530,13.29942312,4522.2,4522.1,12.83999797]
[1759709705727,13.29942312,4522.2,4522.1,2.4]
[1759709706030,13.29942312,4522.2,4522.1,7.7651]
[1759709706231,13.29942312,4522.2,4522.1,26.835559]
[1759709706531,13.29942312,4522.2,4522.1,22.859516]
[1759709706736,1e-08,4524.4,4523.8,0.6336]
[1759709706955,2.43871786,4527.9,4522.2,3.0336]
[1759709706956,0.4533,4527.0,4525.1,0.6336]
[1759709707254,0.01,4527.9,4526.8,2.4]
[1759709707449,0.4533,4527.4,4526.8,3.0336]
[1759709707596,0.534,4527.2,4526.8,2.83961313]
[1759709707796,0.9103,4526.9,4526.4,12.24412499]
[1759709707997,0.4533,4526.8,4525.8,2.4]
[1759709708225,6.38080542,4526.7,4526.0,2.4]
[1759709708395,0.01,4526.9,4526.1,12.24412499]
[1759709708396,3.67671054,4526.6,4526.1,12.24412499]
[1759709708597,0.4533,4526.5,4525.6,2.4]
[1759709708914,1.579,4526.4,4525.8,2.4]
[1759709709118,1.579,4526.4,4525.9,12.24412499]
[1759709709119,0.4533,4526.3,4525.9,12.24412499]
[1759709709306,0.4533,4526.2,4525.7,2.4]
[1759709709628,0.4533,4526.2,4525.6,12.24412499]
[1759709709629,0.4633,4526.9,4525.9,2.4]
[1759709709830,0.4633,4526.9,4526.1,2.4]
[1759709710065,0.4633,4526.9,4525.1,4.74889134]
[1759709710066,0.9003,4526.8,4526.2,12.24412499]
[1759709710269,0.4533,4526.7,4525.8,2.4]
[1759709710555,0.4533,4526.7,4526.0,2.4]
[1759709710719,0.4533,4526.7,4526.1,12.24412499]
[1759709710917,0.4533,4526.6,4526.1,12.24412499]
[1759709711242,0.4533,4526.5,4526.1,12.24412499]
[1759709711452,1.3253,4526.4,4526.1,12.24412499]
[1759709711632,1.3253,4526.3,4526.1,12.24412499]
[1759709711833,0.5637,4526.2,4525.4,2.20973001]
[1759709712052,0.5637,4526.8,4525.5,12.24412499]
[1759709712253,0.543,4526.5,4525.3,12.24412499]
[1759709712550,0.1104,4525.6,4525.0,2.4]
[1759709712772,0.1104,4525.6,4525.1,12.26622394]
[1759709712918,0.4533,4525.5,4525.2,12.24412499]
[1759709713119,0.01,4526.9,4524.7,2.22174477]
[1759709713120,0.1104,4525.1,4524.8,12.24412499]
[1759709713344,0.534,4525.0,4524.9,2.4]
[1759709713556,0.1104,4525.1,4525.0,2.4]
[1759709713762,0.1104,4525.1,4525.0,14.11012499]
[1759709714058,0.5637,4525.1,4525.0,11.71012499]
[1759709714254,0.5637,4525.1,4524.8,11.71012499]
[1759709714423,0.4533,4525.1,4524.8,11.71012499]
[1759709714624,0.1104,4524.9,4524.5,2.4]
[1759709714835,0.01,4526.9,4524.7,2.4]
[1759709714836,1.24,4526.9,4524.7,2.4]
[1759709715031,1.24,4526.9,4524.6,11.73222639]
[1759709715032,0.1104,4525.6,4525.4,2.2097268]
[1759709715231,1.24,4526.9,4525.6,2.20965175]
[1759709715433,1.24,4526.9,4525.7,14.11012499]
[1759709715756,1.24,4526.9,4526.3,2.20929657]
[1759709715922,1.24,4526.9,4526.7,2.2091071]
[1759709716133,1.24,4526.9,4526.8,11.71012499]
[1759709716343,1.23,4526.6,4526.4,13.91936878]
[1759709716543,1.23,4526.6,4526.5,14.11012499]
[1759709717549,1.24,4526.9,4526.5,14.11012499]
[1759709717550,1.24,4526.9,4526.8,2.209066]
[1759709717828,0.57697995,4526.9,4526.8,2.209066]
[1759709718054,0.57697995,4526.9,4526.8,16.31919099]
[1759709718254,0.4533,4528.3,4527.0,2.4]
[1759709718538,0.457,4528.9,4527.1,20.29969699]
[1759709718754,0.4533,4528.5,4527.3,2.4]
[1759709719056,0.457,4528.9,4527.6,2.20867567]
[1759709719057,0.01,4528.9,4527.6,2.20867567]
[1759709719258,0.01,4528.9,4526.8,2.21958983]
[1759709719259,0.01,4528.9,4527.7,30.47379225]
[1759709719461,0.01,4528.9,4528.0,0.6336]
[1759709719662,0.01,4528.9,4528.2,2.4]
[1759709719956,0.01,4528.9,4528.4,2.4]
[1759709720164,0.01,4528.9,4528.5,11.71012499]
[1759709720369,0.01,4528.9,4528.1,1.0801]
[1759709720670,0.01,4528.9,4528.3,2.4]
[1759709720851,0.01,4528.9,4528.4,11.71012499]
[1759709721377,0.01,4528.9,4528.5,2.4]
[1759709721530,0.01,4528.9,4527.5,0.4465]
[1759709721531,0.4533,4528.8,4528.6,11.71012499]
[1759709721730,0.4533,4528.8,4528.2,2.4]
[1759709721938,0.4533,4528.8,4528.4,2.4]
[1759709722140,0.4533,4528.7,4528.5,11.71012499]
[1759709722350,0.4533,4528.6,4528.4,11.71012499]
[1759709722550,2.574,4528.8,4528.4,11.71012499]
[1759709722753,0.01,4528.9,4528.4,11.71012499]
[1759709723336,0.4533,4528.8,4528.4,11.71012499]
[1759709723538,0.4533,4528.7,4528.4,11.71012499]
[1759709723736,0.01,4528.9,4526.9,0.4465]
[1759709723737,0.4533,4528.6,4527.7,11.71012499]
[1759709724068,0.4533,4528.6,4527.0,11.71012499]
[1759709724270,0.4533,4528.6,4527.1,2.42208919]